Workbook

Sheet Frais
A1: 1 | I1: =TODAY() -> 2024-02-12
C2: Montants indicatifs pour les émoluments, les honoraires des avocats et les sûretés
C3: Richtwerte für Gerichtsgebühren, Anwaltshonorare und Sicherheiten
G7: Valeur litigieuse
G8: Streitwert
C11: Tranche d'émolument Gebührenbereich | F11: a
C12: Tranche honoraire des avocats Anwaltshonorarbereich | F12: a
D15: minimum | E15: facile leicht | F15: normal | G15: difficile schwer | H15: maximum | I15: très difficile sehr schwer
C16: Emoluments Gebühren | I16: =IF(ISBLANK(G16),"",IF(G16*2>T30,T30,G16*2)) -> 
C17: Honoraires des avocats Anwaltshonorar | I17: =IF(ISBLANK(G17),"",IF(G17*2>BB35,BB35,G17*2)) -> 
C18: Sûretés Sicherheit | I18: =IF(ISBLANK(G17),"",I17+500) -> 
C20: Art. 13 al. 3 LTar : Lorsque des circonstances particulières le justifient, l'autorité peut majorer ces limites jusqu'au double et en matière pénale et en matière de droit public jusqu'au quintuple. Art. 13 abs. 3 GTar : Wenn es besondere Umstände rechtfertigen, kann die Behörde diese Grenzwerte verdoppeln oder im Strafbereich und im öffentlichen Bereich verfünffachen.
B22: 2009 | C22: Base de calculs : Ltar du 11 février 2009 - modifiée 1.1.2015 Berechnungsgrundlage: GTar vom 11. Februar 2009 - geändert 1.1.2015 | H22: © Tribunal cantonal du Valais Kantonsgericht Wallis
C26: emoluments 2009
C27: 0 | D27: 2000 | E27: 2001 | F27: 8000 | G27: 8001 | H27: 20000 | I27: 20001 | J27: 50000 | K27: 50001 | L27: 100000 | M27: 100001 | N27: 200000 | O27: 200001 | P27: 500000 | Q27: 500001 | R27: 1000000 | S27: 1000001 | T27: 3030300
C28: 180 | D28: =E28 -> 650 | E28: 650 | F28: =G28 -> 900 | G28: 900 | H28: =I28 -> 1800 | I28: 1800 | J28: =K28 -> 2700 | K28: 2700 | L28: =M28 -> 4500 | M28: 4500 | N28: =O28 -> 9000 | O28: 9000 | P28: =Q28 -> 18000 | Q28: 18000 | R28: =S28 -> 27000 | S28: 27000 | T28: 54000
C29: =(C28+C30)/2 -> 255 | D29: =(D28+D30)/2 -> 925 | E29: 925 | F29: 1350 | G29: 1350 | H29: 2700 | I29: 2700 | J29: 4350 | K29: 4350 | L29: 7050 | M29: 7050 | N29: 13500 | O29: 13500 | P29: 30000 | Q29: 30000 | R29: 43500 | S29: 43500 | T29: 87000
C30: 330 | D30: 1200 | E30: =D30 -> 1200 | F30: 1800 | G30: =F30 -> 1800 | H30: 3600 | I30: =H30 -> 3600 | J30: 6000 | K30: =J30 -> 6000 | L30: 9600 | M30: =L30 -> 9600 | N30: 18000 | O30: =N30 -> 18000 | P30: 42000 | Q30: =P30 -> 42000 | R30: 60000 | S30: =R30 -> 60000 | T30: 120000
C31: hon avocats 2009 | BB31: 14000 sind 3.3 von x
C32: 0 | D32: 2000 | E32: 2001 | F32: 10000 | G32: 10001 | H32: 15000 | I32: 15001 | J32: 20000 | K32: 20001 | L32: 30000 | M32: 30001 | N32: 40000 | O32: 40001 | P32: 50000 | Q32: 50001 | R32: 60000 | S32: 60001 | T32: 70000 | U32: 70001 | V32: 80000 | W32: 80001 | X32: 90000 | Y32: 90001 | Z32: 100000 | AA32: 100001 | AB32: 150000 | AC32: 150001 | AD32: 200000 | AE32: 200001 | AF32: 250000 | AG32: 250001 | AH32: 300000 | AI32: 300001 | AJ32: 350000 | AK32: 350001 | AL32: 400000 | AM32: 400001 | AN32: 450000 | AO32: 450001 | AP32: 500000 | AQ32: 500001 | AR32: 600000 | AS32: 600001 | AT32: 700000 | AU32: 700001 | AV32: 800000 | AW32: 800001 | AX32: 900000 | AY32: 900001 | AZ32: 1000000 | BA32: 1000001 | BB32: 4242424
C33: 550 | D33: 1300 | E33: 1500 | F33: =G33 -> 2300 | G33: 2300 | H33: =I33 -> 2900 | I33: 2900 | J33: =K33 -> 3600 | K33: 3600 | L33: =M33 -> 4700 | M33: 4700 | N33: =O33 -> 5800 | O33: 5800 | P33: =Q33 -> 6800 | Q33: 6800 | R33: =S33 -> 7600 | S33: 7600 | T33: =U33 -> 8400 | U33: 8400 | V33: =W33 -> 9100 | W33: 9100 | X33: =Y33 -> 9900 | Y33: 9900 | Z33: =AA33 -> 11100 | AA33: 11100 | AB33: =AC33 -> 12800 | AC33: 12800 | AD33: =AE33 -> 14400 | AE33: 14400 | AF33: =AG33 -> 16100 | AG33: 16100 | AH33: =AI33 -> 17700 | AI33: 17700 | AJ33: =AK33 -> 19400 | AK33: 19400 | AL33: =AM33 -> 21000 | AM33: 21000 | AN33: =AO33 -> 22700 | AO33: 22700 | AP33: =AQ33 -> 24500 | AQ33: 24500 | AR33: =AS33 -> 26700 | AS33: 26700 | AT33: =AU33 -> 28900 | AU33: 28900 | AV33: =AW33 -> 31100 | AW33: 31100 | AX33: =AY33 -> 33300 | AY33: 33300 | AZ33: =BA33 -> 33000 | BA33: 33000 | BB33: 115000
C34: =(C33+C35)/2 -> 575 | D34: =(D33+D35)/2 -> 1350 | E34: 1550 | F34: 2400 | G34: 2400 | H34: 3100 | I34: 3100 | J34: 3800 | K34: 3800 | L34: 5050 | M34: 5050 | N34: 6300 | O34: 6300 | P34: 7500 | Q34: 7500 | R34: 8400 | S34: 8400 | T34: 9300 | U34: 9300 | V34: 10200 | W34: 10200 | X34: 11100 | Y34: 11100 | Z34: 12200 | AA34: 12200 | AB34: 14100 | AC34: 14100 | AD34: 16000 | AE34: 16000 | AF34: 17900 | AG34: 17900 | AH34: 19800 | AI34: 19800 | AJ34: 21700 | AK34: 21700 | AL34: 23600 | AM34: 23600 | AN34: 25500 | AO34: 25500 | AP34: 27500 | AQ34: 27500 | AR34: 28750 | AS34: 28750 | AT34: 31150 | AU34: 31150 | AV34: 33600 | AW34: 33600 | AX34: 35900 | AY34: 35900 | AZ34: 37100 | BA34: 37100 | BB34: 127500
C35: 600 | D35: 1400 | E35: 1600 | F35: 2500 | G35: =F35 -> 2500 | H35: 3300 | I35: =H35 -> 3300 | J35: 4000 | K35: =J35 -> 4000 | L35: 5400 | M35: =L35 -> 5400 | N35: 6800 | O35: =N35 -> 6800 | P35: 8200 | Q35: =P35 -> 8200 | R35: 9200 | S35: =R35 -> 9200 | T35: 10200 | U35: =T35 -> 10200 | V35: 11300 | W35: =V35 -> 11300 | X35: 12300 | Y35: =X35 -> 12300 | Z35: 13300 | AA35: =Z35 -> 13300 | AB35: 15400 | AC35: =AB35 -> 15400 | AD35: 17600 | AE35: =AD35 -> 17600 | AF35: 19700 | AG35: =AF35 -> 19700 | AH35: 21900 | AI35: =AH35 -> 21900 | AJ35: 24000 | AK35: =AJ35 -> 24000 | AL35: 26200 | AM35: =AL35 -> 26200 | AN35: 28300 | AO35: =AN35 -> 28300 | AP35: 30500 | AQ35: =AP35 -> 30500 | AR35: 30800 | AS35: =AR35 -> 30800 | AT35: 33400 | AU35: =AT35 -> 33400 | AV35: 36100 | AW35: =AV35 -> 36100 | AX35: 38500 | AY35: =AX35 -> 38500 | AZ35: 41200 | BA35: =AZ35 -> 41200 | BB35: 140000
C37: emoluments old 1998
C38: 0 | D38: 5000 | E38: 5001 | F38: 8000 | G38: 8001 | H38: 20000 | I38: 20001 | J38: 50000 | K38: 50001 | L38: 100000 | M38: 100001 | N38: 200000 | O38: 200001 | P38: 500000 | Q38: 500001 | R38: 1000000 | S38: 1000001 | T38: 3030300
C39: 200 | D39: =E39 -> 750 | E39: 750 | F39: =G39 -> 1000 | G39: 1000 | H39: =I39 -> 2000 | I39: 2000 | J39: =K39 -> 3000 | K39: 3000 | L39: =M39 -> 5000 | M39: 5000 | N39: =O39 -> 10000 | O39: 10000 | P39: =Q39 -> 20000 | Q39: 20000 | R39: =S39 -> 30000 | S39: 30000 | T39: 60000
C40: =(C39+C41)/2 -> 250 | D40: =(D39+D41)/2 -> 875 | E40: 875 | F40: 1250 | G40: 1250 | H40: 2500 | I40: 2500 | J40: 4000 | K40: 4000 | L40: 6500 | M40: 6500 | N40: 12500 | O40: 12500 | P40: 27500 | Q40: 27500 | R40: 40000 | S40: 40000 | T40: 80000 | BA40: =BA44/BA46 -> 0.88 | BB40: =BB44/BB46 -> 0.8846153846
C41: 300 | D41: 1000 | E41: =D41 -> 1000 | F41: 1500 | G41: =F41 -> 1500 | H41: 3000 | I41: =H41 -> 3000 | J41: 5000 | K41: =J41 -> 5000 | L41: 8000 | M41: =L41 -> 8000 | N41: 15000 | O41: =N41 -> 15000 | P41: 35000 | Q41: =P41 -> 35000 | R41: 50000 | S41: =R41 -> 50000 | T41: 100000
C42: hon avocats 1998
C43: 0 | D43: 5000 | E43: 5001 | F43: 10000 | G43: 10001 | H43: 15000 | I43: 15001 | J43: 20000 | K43: 20001 | L43: 30000 | M43: 30001 | N43: 40000 | O43: 40001 | P43: 50000 | Q43: 50001 | R43: 60000 | S43: 60001 | T43: 70000 | U43: 70001 | V43: 80000 | W43: 80001 | X43: 90000 | Y43: 90001 | Z43: 100000 | AA43: 100001 | AB43: 150000 | AC43: 150001 | AD43: 200000 | AE43: 200001 | AF43: 250000 | AG43: 250001 | AH43: 300000 | AI43: 300001 | AJ43: 350000 | AK43: 350001 | AL43: 400000 | AM43: 400001 | AN43: 450000 | AO43: 450001 | AP43: 500000 | AQ43: 500001 | AR43: 600000 | AS43: 600001 | AT43: 700000 | AU43: 700001 | AV43: 800000 | AW43: 800001 | AX43: 900000 | AY43: 900001 | AZ43: 1000000 | BA43: 1000001 | BB43: 3939400
C44: 500 | D44: 1200 | E44: 1400 | F44: =G44 -> 2100 | G44: 2100 | H44: =I44 -> 2600 | I44: 2600 | J44: =K44 -> 3300 | K44: 3300 | L44: =M44 -> 4300 | M44: 4300 | N44: =O44 -> 5300 | O44: 5300 | P44: =Q44 -> 6200 | Q44: 6200 | R44: =S44 -> 6900 | S44: 6900 | T44: =U44 -> 7600 | U44: 7600 | V44: =W44 -> 8300 | W44: 8300 | X44: =Y44 -> 9000 | Y44: 9000 | Z44: =AA44 -> 10100 | AA44: 10100 | AB44: =AC44 -> 11600 | AC44: 11600 | AD44: =AE44 -> 13100 | AE44: 13100 | AF44: =AG44 -> 14600 | AG44: 14600 | AH44: =AI44 -> 16100 | AI44: 16100 | AJ44: =AK44 -> 17600 | AK44: 17600 | AL44: =AM44 -> 19100 | AM44: 19100 | AN44: =AO44 -> 20600 | AO44: 20600 | AP44: =AQ44 -> 22300 | AQ44: 22300 | AR44: =AS44 -> 24300 | AS44: 24300 | AT44: =AU44 -> 26300 | AU44: 26300 | AV44: =AW44 -> 28300 | AW44: 28300 | AX44: =AY44 -> 30300 | AY44: 30300 | AZ44: =BA44 -> 33000 | BA44: 33000 | BB44: 115000
C45: =(C44+C46)/2 -> 525 | D45: =(D44+D46)/2 -> 1250 | E45: 1450 | F45: 2200 | G45: 2200 | H45: 2800 | I45: 2800 | J45: 3450 | K45: 3450 | L45: 4600 | M45: 4600 | N45: 5750 | O45: 5750 | P45: 6850 | Q45: 6850 | R45: 7650 | S45: 7650 | T45: 8450 | U45: 8450 | V45: 9300 | W45: 9300 | X45: 10100 | Y45: 10100 | Z45: 11100 | AA45: 11100 | AB45: 12800 | AC45: 12800 | AD45: 14550 | AE45: 14550 | AF45: 16250 | AG45: 16250 | AH45: 18000 | AI45: 18000 | AJ45: 19700 | AK45: 19700 | AL45: 21450 | AM45: 21450 | AN45: 23150 | AO45: 23150 | AP45: 25000 | AQ45: 25000 | AR45: 26150 | AS45: 26150 | AT45: 28350 | AU45: 28350 | AV45: 30550 | AW45: 30550 | AX45: 32650 | AY45: 32650 | AZ45: 35250 | BA45: 35250 | BB45: 122500
C46: 550 | D46: 1300 | E46: 1500 | F46: 2300 | G46: =F46 -> 2300 | H46: 3000 | I46: =H46 -> 3000 | J46: 3600 | K46: =J46 -> 3600 | L46: 4900 | M46: =L46 -> 4900 | N46: 6200 | O46: =N46 -> 6200 | P46: 7500 | Q46: =P46 -> 7500 | R46: 8400 | S46: =R46 -> 8400 | T46: 9300 | U46: =T46 -> 9300 | V46: 10300 | W46: =V46 -> 10300 | X46: 11200 | Y46: =X46 -> 11200 | Z46: 12100 | AA46: =Z46 -> 12100 | AB46: 14000 | AC46: =AB46 -> 14000 | AD46: 16000 | AE46: =AD46 -> 16000 | AF46: 17900 | AG46: =AF46 -> 17900 | AH46: 19900 | AI46: =AH46 -> 19900 | AJ46: 21800 | AK46: =AJ46 -> 21800 | AL46: 23800 | AM46: =AL46 -> 23800 | AN46: 25700 | AO46: =AN46 -> 25700 | AP46: 27700 | AQ46: =AP46 -> 27700 | AR46: 28000 | AS46: =AR46 -> 28000 | AT46: 30400 | AU46: =AT46 -> 30400 | AV46: 32800 | AW46: =AV46 -> 32800 | AX46: 35000 | AY46: =AX46 -> 35000 | AZ46: 37500 | BA46: =AZ46 -> 37500 | BB46: 130000
C49: Base de calculs : Ltar du 11 février 2009 - modifiée 1.1.2015 Berechnungsgrundlage: GTar vom 11. Februar 2009 - geändert 1.1.2015
C50: Base de calculs: Ltar du 14 mai 1998 Berechnungsgrundlage GTar vom 14. Mai 1998
